bitfinex-derivatives/quotes_BTCF0:USTF0_20230901
["timestamp","ask_amount","ask_price","bid_price","bid_amount"]
[1693534893428,0.42343588,26031.0,26030.0,0.4214]
[1693534893624,0.45673225,26031.0,26030.0,0.4214]
[1693534894028,0.38204318,26031.0,26030.0,0.4214]
[1693534894222,0.34874681,26031.0,26030.0,0.4214]
[1693534895031,0.40343588,26031.0,26030.0,0.4214]
[1693534895924,0.34874681,26031.0,26030.0,0.4214]
[1693534896734,0.40343588,26031.0,26030.0,0.4214]
[1693534897233,0.43673225,26031.0,26030.0,0.4214]
[1693534898333,0.38204318,26031.0,26030.0,0.4214]
[1693534898730,0.43673225,26031.0,26030.0,0.4214]
[1693534899332,0.38204318,26031.0,26030.0,0.4214]
[1693534899626,0.66742807,26031.0,26030.0,0.4214]
[1693534902537,0.612739,26031.0,26030.0,0.4214]
[1693534903336,0.66742807,26031.0,26030.0,0.4214]
[1693534903726,0.612739,26031.0,26030.0,0.4214]
[1693534903928,0.66742807,26031.0,26030.0,0.4214]
[1693534906835,0.43673225,26031.0,26030.0,0.4214]
[1693534914542,0.66742807,26031.0,26030.0,0.4214]
[1693534915444,0.66742807,26031.0,26030.0,0.5826]
[1693534918141,0.6341317,26031.0,26030.0,0.5826]
[1693534918548,0.57944263,26031.0,26030.0,0.63728907]
[1693534919049,0.57944263,26031.0,26030.0,0.63914838]
[1693534920241,0.6341317,26031.0,26030.0,0.63914838]
[1693534920739,0.6341317,26031.0,26030.0,0.5826]
[1693534921247,0.57944263,26031.0,26030.0,0.5826]
[1693534921635,0.6341317,26031.0,26030.0,0.5826]
[1693534923150,0.57944263,26031.0,26030.0,0.5826]
[1693534924245,0.6341317,26031.0,26030.0,0.5826]
[1693534926245,0.57944263,26031.0,26030.0,0.5826]
[1693534926451,0.6341317,26031.0,26030.0,0.5826]
[1693534927555,0.57944263,26031.0,26030.0,0.5826]
[1693534927953,0.6341317,26031.0,26030.0,0.5826]
[1693534928147,0.57944263,26031.0,26030.0,0.5826]
[1693534929045,0.6341317,26031.0,26030.0,0.5826]
[1693534929446,0.57944263,26031.0,26030.0,0.5826]
[1693534930058,0.57944263,26031.0,26030.0,0.63914838]
[1693534930253,0.57944263,26031.0,26030.0,0.69383745]
[1693534930654,0.57944263,26031.0,26030.0,0.63914838]
[1693534932461,0.34874681,26031.0,26030.0,0.63914838]
[1693534935058,0.40343588,26031.0,26030.0,0.5826]
[1693534935259,0.43673225,26031.0,26030.0,0.5826]
[1693534935761,0.38204318,26031.0,26030.0,0.5826]
[1693534937059,0.38204318,26031.0,26030.0,0.63914838]
[1693534938257,0.34874681,26031.0,26030.0,0.63914838]
[1693534939260,0.34874681,26031.0,26030.0,0.5826]
[1693534939862,0.38204318,26031.0,26030.0,0.5826]
[1693534940962,0.34874681,26031.0,26030.0,0.5826]
[1693534944169,0.38204318,26031.0,26030.0,0.5826]
[1693534945762,0.43673225,26031.0,26030.0,0.5826]
[1693534949086,0.38204318,26031.0,26030.0,0.5826]
[1693534950274,0.43673225,26031.0,26030.0,0.5826]
[1693534950474,0.38204318,26031.0,26030.0,0.5826]
[1693534950881,0.43673225,26031.0,26030.0,0.5826]
[1693534951182,0.38204318,26031.0,26030.0,0.5826]
[1693534951685,0.21804318,26031.0,26030.0,0.5826]
[1693534951983,0.18474681,26031.0,26030.0,0.69383745]
[1693534952881,0.21804318,26031.0,26030.0,0.63914838]
[1693534953078,0.21804318,26031.0,26030.0,0.63728907]
[1693534953388,0.21804318,26031.0,26030.0,0.5826]
[1693534956189,0.21804318,26031.0,26030.0,0.63728907]
[1693534956483,0.18474681,26031.0,26030.0,0.5826]
[1693534956782,0.18474681,26031.0,26030.0,0.63728907]
[1693534957383,0.18474681,26031.0,26030.0,0.5826]
[1693534958783,0.18474681,26031.0,26030.0,0.69383745]
[1693534959185,0.18474681,26031.0,26030.0,0.63914838]
[1693534959384,0.18474681,26031.0,26030.0,0.57061426]
[1693534959683,0.21804318,26031.0,26030.0,0.57061426]
[1693534959881,0.4486768,26031.0,26030.0,0.57061426]
[1693534962388,0.4486768,26031.0,26030.0,0.62530333]
[1693534962779,0.4486768,26031.0,26030.0,0.57061426]
[1693534962982,0.4486768,26031.0,26030.0,0.62530333]
[1693534963284,0.41538043,26031.0,26030.0,0.62530333]
[1693534965373,0.41538043,26031.0,26030.0,0.57061426]
[1693534965573,0.4486768,26031.0,26030.0,0.57061426]
[1693534966277,0.4486768,26031.0,26030.0,0.62530333]
[1693534966877,0.18474681,26031.0,26030.0,0.62530333]
[1693534967786,0.18474681,26031.0,26030.0,0.68185171]
[1693534970192,0.03050681,26031.0,26030.0,0.68185171]
[1693534970486,0.28961977,26032.0,26030.0,0.68185171]
[1693534970487,0.05898615,26032.0,26030.0,0.68185171]
[1693534970692,0.23063362,26033.0,26031.0,0.52663745]
[1693534970991,0.23063362,26033.0,26032.0,0.4154]
[1693534971183,0.26198481,26033.0,26032.0,0.52663745]
[1693534972089,0.26198481,26033.0,26032.0,0.52963745]
[1693534972391,0.08884299,26033.0,26032.0,0.52963745]
[1693534972699,0.19212451,26033.0,26032.0,0.52963745]
[1693534973893,0.23055062,26035.0,26032.0,0.53263745]
[1693534974195,0.28583846,26036.0,26034.0,0.4154]
[1693534974386,0.28583846,26036.0,26035.0,0.4154]
[1693534974882,0.28583846,26036.0,26035.0,0.47008907]
[1693534975891,0.28583846,26036.0,26035.0,0.47308907]
[1693534976886,0.28583846,26036.0,26035.0,0.47608907]
[1693534977990,0.28583846,26036.0,26035.0,0.53263745]
[1693534978587,0.26583846,26036.0,26035.0,0.53263745]
[1693534979196,0.03528784,26036.0,26035.0,0.53263745]
[1693534980599,0.03528784,26036.0,26035.0,0.4214]
[1693534980790,0.26583846,26036.0,26035.0,0.4214]
[1693534981093,0.03528784,26036.0,26035.0,0.47608907]
[1693534981688,0.03528784,26036.0,26035.0,0.53263745]
[1693534989497,0.06858421,26036.0,26035.0,0.47608907]
[1693534990400,0.06858421,26036.0,26035.0,0.63008907]
[1693534991304,0.03528784,26036.0,26035.0,0.63008907]
[1693534992106,0.03528784,26036.0,26035.0,0.68663745]
[1693534997414,0.03528784,26036.0,26035.0,0.67716584]
[1693534998006,0.06858421,26036.0,26035.0,0.62061746]
[1693534998210,0.03144784,26036.0,26035.0,1.09256584]
[1693534998410,0.23055062,26038.0,26035.0,1.09256584]
[1693534998596,0.23055062,26038.0,26037.0,0.4154]
[1693534999104,0.23055062,26038.0,26037.0,0.47008907]
[1693534999408,0.23055062,26038.0,26037.0,0.52663745]
[1693534999909,0.26095638,26038.0,26037.0,0.52663745]
[1693535000301,0.26095638,26038.0,26037.0,0.47308907]
[1693535000501,0.35135582,26038.0,26037.0,0.47608907]
[1693535003411,0.31805945,26038.0,26037.0,0.53263745]
[1693535005411,0.31805945,26038.0,26037.0,0.4214]
[1693535005707,0.31805945,26038.0,26037.0,0.47608907]
[1693535006213,0.31805945,26038.0,26037.0,0.53263745]
[1693535006916,0.31805945,26038.0,26037.0,0.47794838]
[1693535007117,0.31805945,26038.0,26037.0,0.53263745]
[1693535009318,0.31805945,26038.0,26037.0,0.47794838]
[1693535009713,0.31805945,26038.0,26037.0,0.64274838]
[1693535010113,0.31805945,26038.0,26037.0,0.53263745]
[1693535010320,0.08750883,26038.0,26037.0,0.53263745]
[1693535010517,0.38395462,26040.0,26037.0,0.53263745]
[1693535010715,0.23025462,26039.0,26037.0,0.06068907]
[1693535010910,0.23025462,26039.0,26038.0,0.47194838]
[1693535011116,0.23025462,26039.0,26038.0,0.52663745]
[1693535011317,0.38395462,26040.0,26038.0,0.52663745]
[1693535011617,0.00384,26039.0,26038.0,0.1608]
[1693535011819,0.23409462,26039.0,26038.0,0.5762]
[1693535012725,0.23409462,26039.0,26038.0,0.63274838]
[1693535012918,0.23409462,26039.0,26038.0,0.68743745]
[1693535013114,0.23409462,26039.0,26038.0,0.69043745]
[1693535013422,0.26739099,26039.0,26038.0,0.63574838]
[1693535013619,0.26739099,26039.0,26038.0,0.5822]
[1693535014220,0.23409462,26039.0,26038.0,0.63688907]
[1693535014422,0.23409462,26039.0,26038.0,0.69343745]
[1693535015223,0.00384,26039.0,26038.0,0.5822]
[1693535015420,0.03713637,26039.0,26038.0,0.5822]
[1693535016125,0.26746874,26039.0,26038.0,0.5822]
[1693535016323,0.03713637,26039.0,26038.0,0.5822]
[1693535016524,0.09275709,26039.0,26038.0,0.5822]
[1693535016725,0.09275709,26039.0,26038.0,0.63688907]
[1693535016924,0.09275709,26039.0,26038.0,0.5822]
[1693535017425,0.09275709,26039.0,26038.0,0.69343745]
[1693535017726,0.09275709,26039.0,26038.0,0.5822]
[1693535018324,0.36138748,26039.0,26038.0,0.5822]
[1693535018626,0.14744616,26039.0,26038.0,0.5822]
[1693535019021,0.32223301,26039.0,26038.0,0.5822]
[1693535020328,0.26754394,26039.0,26038.0,0.5822]
[1693535020721,0.32223301,26039.0,26038.0,0.5822]
[1693535021329,0.32223301,26039.0,26038.0,0.4214]
[1693535021715,0.32223301,26039.0,26038.0,0.29847003]
[1693535022017,0.32223301,26039.0,26029.0,0.07655124]
[1693535022018,0.30384,26036.0,26029.0,0.07655124]
[1693535022227,0.19202087,26033.0,26031.0,0.02]
[1693535022427,0.28000631,26032.0,26031.0,0.04]
[1693535022728,0.19202087,26032.0,26031.0,0.4554]
[1693535022926,0.28000631,26032.0,26031.0,0.4554]
[1693535023925,0.28300631,26032.0,26031.0,0.4554]
[1693535024126,0.28300631,26032.0,26031.0,0.4354]
[1693535024327,0.28300631,26032.0,26031.0,0.4554]
[1693535024624,0.28300631,26032.0,26031.0,0.4354]
[1693535024825,0.28600631,26032.0,26031.0,0.4374]
[1693535025032,0.09398544,26032.0,26031.0,0.4374]
[1693535025724,0.03929637,26032.0,26031.0,0.4374]
[1693535025922,0.09398544,26032.0,26031.0,0.4374]
[1693535026626,0.03929637,26032.0,26031.0,0.4374]
[1693535026927,0.09398544,26032.0,26031.0,0.4374]
[1693535027127,0.28600631,26032.0,26031.0,0.4374]
[1693535027427,0.23131724,26032.0,26031.0,0.4374]
[1693535027627,0.28600631,26032.0,26031.0,0.4374]
[1693535028921,0.00057534,26034.0,26031.0,0.4374]
[1693535029121,0.00057534,26034.0,26033.0,0.4154]
[1693535029432,0.00057534,26034.0,26033.0,0.52663745]
[1693535029628,0.00057534,26034.0,26033.0,0.47194838]
[1693535030039,0.00057534,26034.0,26033.0,0.52663745]
[1693535030532,0.00057534,26034.0,26033.0,0.52863745]
[1693535031234,0.05862285,26034.0,26033.0,0.52863745]
[1693535031931,0.05862285,26034.0,26033.0,0.53163745]
[1693535034535,0.05862285,26034.0,26033.0,0.47694838]
[1693535035434,0.05862285,26034.0,26033.0,0.53163745]
[1693535036635,0.05862285,26034.0,26033.0,0.47694838]
[1693535036831,0.05862285,26034.0,26033.0,0.53163745]
[1693535037333,0.09191922,26034.0,26033.0,0.4204]
[1693535038835,0.09191922,26034.0,26033.0,0.5744]
[1693535039031,0.14660829,26034.0,26033.0,0.5744]
[1693535044328,0.09191922,26034.0,26033.0,0.5744]
[1693535045029,0.14660829,26034.0,26033.0,0.5744]
[1693535046744,0.16660829,26034.0,26031.0,0.02]
[1693535046935,0.05468907,26033.0,26028.0,0.14893274]
[1693535047237,0.2055,26033.0,26032.0,0.4154]
[1693535047443,0.05862285,26034.0,26032.0,0.4154]
[1693535047737,0.05862285,26034.0,26033.0,0.4154]
[1693535047941,0.09491922,26034.0,26033.0,0.47008907]
[1693535048939,0.28680348,26034.0,26033.0,0.47008907]
[1693535049341,0.09491922,26034.0,26033.0,0.47008907]
[1693535049544,0.14960829,26034.0,26033.0,0.4154]
[1693535049840,0.11491922,26034.0,26033.0,0.52663745]
[1693535050038,0.11491922,26034.0,26033.0,0.62554838]
[1693535050233,0.11691922,26034.0,26033.0,0.62754838]
[1693535050542,0.11691922,26034.0,26033.0,0.63054838]
[1693535050748,0.11691922,26034.0,26033.0,0.68523745]
[1693535051044,0.11691922,26034.0,26033.0,0.63054838]
[1693535051241,0.08362285,26034.0,26033.0,0.68523745]
[1693535051439,0.27550822,26034.0,26033.0,0.68523745]
[1693535053143,0.25550822,26034.0,26033.0,0.68523745]
[1693535059052,0.25550822,26034.0,26033.0,0.63054838]
[1693535059841,0.25550822,26034.0,26033.0,0.68523745]
[1693535060046,0.25550822,26034.0,26033.0,0.63054838]
[1693535060953,0.25550822,26034.0,26033.0,0.68523745]
[1693535061644,0.25550822,26034.0,26033.0,0.63054838]
[1693535062045,0.27550822,26034.0,26033.0,0.63054838]
[1693535062242,0.25550822,26034.0,26033.0,0.63054838]
[1693535063141,0.27550822,26034.0,26033.0,0.63054838]
[1693535063353,0.27550822,26034.0,26033.0,0.68523745]
[1693535063757,0.27550822,26034.0,26033.0,0.63054838]
[1693535064658,0.08362285,26034.0,26033.0,0.63054838]
[1693535065157,0.06362285,26034.0,26033.0,0.63054838]
[1693535065455,0.08362285,26034.0,26033.0,0.68523745]
[1693535065649,0.06362285,26034.0,26033.0,0.63054838]
[1693535066453,0.08362285,26034.0,26033.0,0.63054838]
[1693535067057,0.06362285,26034.0,26033.0,0.68523745]
[1693535067546,0.08362285,26034.0,26033.0,0.63054838]
[1693535069954,0.06362285,26034.0,26033.0,0.68523745]
[1693535070155,0.08362285,26034.0,26033.0,0.68523745]
[1693535070355,0.06362285,26034.0,26033.0,0.68523745]
[1693535070860,0.08362285,26034.0,26033.0,0.68523745]
[1693535071452,0.08362285,26034.0,26033.0,0.63054838]
[1693535072361,0.08362285,26034.0,26033.0,0.68523745]
[1693535075162,0.08362285,26034.0,26033.0,0.63054838]
[1693535076063,0.08362285,26034.0,26033.0,0.68523745]
[1693535076455,0.08362285,26034.0,26033.0,0.63054838]
[1693535077257,0.08362285,26034.0,26033.0,0.68523745]
[1693535078773,0.08362285,26034.0,26033.0,0.63054838]
[1693535080366,0.08362285,26034.0,26033.0,0.68523745]
[1693535080568,0.08362285,26034.0,26033.0,0.63054838]
[1693535080968,0.08362285,26034.0,26033.0,0.68523745]
[1693535081268,0.08362285,26034.0,26033.0,0.63054838]
[1693535081967,0.13831192,26034.0,26033.0,0.63054838]
[1693535082364,0.08362285,26034.0,26033.0,0.63054838]
[1693535084367,0.13831192,26034.0,26033.0,0.63054838]
[1693535084771,0.08362285,26034.0,26033.0,0.63054838]
[1693535087478,0.08362285,26034.0,26033.0,0.68523745]
[1693535088372,0.08362285,26034.0,26033.0,0.63054838]
[1693535090782,0.13831192,26034.0,26033.0,0.574]
[1693535091679,0.08362285,26034.0,26033.0,0.574]
[1693535091874,0.13831192,26034.0,26033.0,0.574]
[1693535092183,0.08362285,26034.0,26033.0,0.574]
[1693535092982,0.08362285,26034.0,26033.0,0.63054838]
[1693535096989,0.08362285,26034.0,26033.0,0.68523745]
[1693535097293,0.08362285,26034.0,26033.0,0.63054838]
[1693535097493,0.08362285,26034.0,26033.0,0.574]
[1693535097692,0.13831192,26034.0,26033.0,0.574]
[1693535097895,0.11831192,26034.0,26033.0,0.574]
[1693535098294,0.09691922,26034.0,26033.0,0.574]
[1693535099599,0.06362285,26034.0,26033.0,0.574]
[1693535099897,0.06362285,26034.0,26033.0,0.63054838]
[1693535100491,0.11831192,26034.0,26033.0,0.63054838]
[1693535100791,0.06362285,26034.0,26033.0,0.63054838]
[1693535101393,0.06362285,26034.0,26033.0,0.68523745]
[1693535101689,0.29404789,26034.0,26033.0,0.68523745]
[1693535102196,0.31404789,26034.0,26033.0,0.68523745]
[1693535103290,0.31404789,26034.0,26033.0,0.63054838]
[1693535105595,0.31404789,26034.0,26033.0,0.68523745]
[1693535106195,0.31404789,26034.0,26033.0,0.63054838]
[1693535107090,0.31404789,26034.0,26033.0,0.68523745]
[1693535107290,0.31404789,26034.0,26033.0,0.63054838]
[1693535107491,0.31404789,26034.0,26033.0,0.574]
[1693535108097,0.34734426,26034.0,26033.0,0.574]
[1693535108497,0.34734426,26034.0,26033.0,0.62868907]
[1693535108698,0.34734426,26034.0,26033.0,0.574]
[1693535109202,0.31404789,26034.0,26033.0,0.574]
[1693535109402,0.40203333,26034.0,26033.0,0.574]
[1693535109906,0.17160829,26034.0,26033.0,0.574]
[1693535110497,0.11691922,26034.0,26033.0,0.574]
[1693535111205,0.08362285,26034.0,26033.0,0.574]
[1693535111400,0.08362285,26034.0,26033.0,0.68523745]
[1693535111603,0.08362285,26034.0,26033.0,0.63054838]
[1693535113205,0.08362285,26034.0,26033.0,0.68523745]
[1693535113393,0.08362285,26034.0,26033.0,0.63054838]
[1693535113599,0.08362285,26034.0,26033.0,0.574]
[1693535114507,0.11691922,26034.0,26033.0,0.574]
[1693535115507,0.08362285,26034.0,26033.0,0.62868907]
[1693535116107,0.08362285,26034.0,26033.0,0.574]
[1693535116612,0.31404789,26034.0,26033.0,0.574]
[1693535117201,0.31404789,26034.0,26033.0,0.62868907]
[1693535117400,0.31404789,26034.0,26033.0,0.68523745]
[1693535117600,0.31404789,26034.0,26033.0,0.63054838]
[1693535118906,0.31404789,26034.0,26033.0,0.574]
[1693535119210,0.34734426,26034.0,26033.0,0.574]
[1693535120705,0.31404789,26034.0,26033.0,0.63054838]
[1693535121303,0.31404789,26034.0,26033.0,0.68523745]
[1693535121814,0.34734426,26034.0,26033.0,0.574]
[1693535123603,0.40203333,26034.0,26033.0,0.574]
[1693535124005,0.34734426,26034.0,26033.0,0.574]
[1693535124504,0.40203333,26034.0,26033.0,0.574]
[1693535124705,0.17160829,26034.0,26033.0,0.574]
[1693535125913,0.11691922,26034.0,26033.0,0.574]
[1693535127315,0.08362285,26034.0,26033.0,0.574]
[1693535128015,0.08362285,26034.0,26033.0,0.68523745]
[1693535128606,0.08362285,26034.0,26033.0,0.63054838]
[1693535128807,0.13831192,26034.0,26033.0,0.63054838]
[1693535129013,0.08362285,26034.0,26033.0,0.63054838]
[1693535129810,0.08362285,26034.0,26033.0,0.68523745]
[1693535130516,0.08362285,26034.0,26033.0,0.63054838]
[1693535130910,0.08362285,26034.0,26033.0,0.68523745]
[1693535133011,0.08362285,26034.0,26033.0,0.63054838]
[1693535136212,0.08362285,26034.0,26033.0,0.68523745]
[1693535136917,0.08362285,26034.0,26033.0,0.63054838]
[1693535139114,0.08362285,26034.0,26033.0,0.68523745]
[1693535139518,0.08362285,26034.0,26033.0,0.63054838]
[1693535139811,0.31404789,26034.0,26033.0,0.63054838]
[1693535140012,0.34734426,26034.0,26033.0,0.574]
[1693535140310,0.40203333,26034.0,26033.0,0.574]
[1693535140507,0.34734426,26034.0,26033.0,0.574]
[1693535140710,0.40203333,26034.0,26033.0,0.574]
[1693535140908,0.34734426,26034.0,26033.0,0.574]
[1693535144011,0.40203333,26034.0,26033.0,0.574]
[1693535145326,0.34734426,26034.0,26033.0,0.574]
[1693535146523,0.11691922,26034.0,26033.0,0.574]
[1693535147319,0.17160829,26034.0,26033.0,0.574]
[1693535147723,0.11691922,26034.0,26033.0,0.574]
[1693535149128,0.11691922,26034.0,26033.0,0.68523745]
[1693535149530,0.11691922,26034.0,26033.0,0.63054838]
[1693535149827,0.11691922,26034.0,26033.0,0.574]
[1693535150036,0.08362285,26034.0,26033.0,0.574]
[1693535152132,0.08362285,26034.0,26033.0,0.62868907]
[1693535152932,0.08362285,26034.0,26033.0,0.63054838]
[1693535153533,0.08362285,26034.0,26033.0,0.68523745]
[1693535154736,0.3142194,26034.0,26033.0,0.68523745]
[1693535155437,0.3142194,26034.0,26033.0,0.63054838]
[1693535155829,0.3142194,26034.0,26033.0,0.68523745]
[1693535156428,0.3142194,26034.0,26033.0,0.63054838]
[1693535156836,0.3142194,26034.0,26033.0,0.68523745]
[1693535157134,0.2942194,26034.0,26033.0,0.68523745]
[1693535157730,0.2942194,26034.0,26033.0,0.63054838]
[1693535158927,0.2942194,26034.0,26033.0,0.68523745]
[1693535159332,0.2942194,26034.0,26033.0,0.63054838]
[1693535159724,0.2942194,26034.0,26033.0,0.68523745]
[1693535160239,0.2942194,26034.0,26033.0,0.63054838]
[1693535161239,0.2942194,26034.0,26033.0,0.68523745]
[1693535161430,0.2942194,26034.0,26033.0,0.63054838]
[1693535161631,0.06362285,26034.0,26033.0,0.63054838]
[1693535161833,0.06362285,26034.0,26033.0,0.68523745]
[1693535162538,0.23059655,26035.0,26033.0,1.25790205]
[1693535162838,0.05815883,26040.0,26035.0,1.6847378]
[1693535163031,0.00384,26041.0,26039.0,0.4154]
[1693535163236,0.02384,26041.0,26040.0,0.52663745]
[1693535163435,0.02384,26041.0,26040.0,0.4154]
[1693535163436,0.0794597,26041.0,26040.0,0.4154]
[1693535163637,0.13021809,26041.0,26040.0,0.4154]
[1693535163834,0.188311,26041.0,26040.0,0.52663745]
[1693535164335,0.1326913,26041.0,26040.0,0.52663745]
[1693535164528,0.1326913,26041.0,26040.0,0.52963745]
[1693535165242,0.1126913,26041.0,26040.0,0.52963745]
[1693535165437,0.1326913,26041.0,26040.0,0.52963745]
[1693535165639,0.1326913,26041.0,26040.0,0.53263745]
[1693535165836,0.1126913,26041.0,26040.0,0.53263745]
[1693535174948,0.14598767,26041.0,26040.0,0.47608907]
[1693535175349,0.1126913,26041.0,26040.0,0.53263745]
[1693535178545,0.0926913,26041.0,26040.0,0.53263745]
[1693535180840,0.1126913,26041.0,26040.0,0.53263745]
[1693535184543,0.20067674,26041.0,26040.0,0.39201596]
[1693535184756,0.166,26042.0,26040.0,0.47992907]
[1693535184944,0.186,26042.0,26041.0,0.4154]
[1693535185146,0.24068907,26042.0,26041.0,0.4154]
[1693535186046,0.29733175,26042.0,26041.0,0.4154]
[1693535186654,0.29733175,26042.0,26041.0,0.4184]
[1693535187248,0.29733175,26042.0,26041.0,0.4214]
[1693535188349,0.27733175,26042.0,26041.0,0.4214]
[1693535188558,0.29733175,26042.0,26041.0,0.4214]
[1693535188759,0.50740578,26042.0,26041.0,0.4214]
[1693535188950,0.50740578,26042.0,26041.0,0.37115101]
[1693535189151,0.52740578,26042.0,26041.0,0.37115101]
[1693535189751,0.53124578,26042.0,26041.0,0.37115101]
[1693535190159,0.56146232,26042.0,26041.0,0.37115101]
[1693535190355,0.56146232,26042.0,26041.0,0.33973102]
[1693535190557,0.00384,26039.0,26035.0,0.35892993]
[1693535190761,0.00384,26036.0,26035.0,0.18461831]
[1693535191062,0.19175289,26036.0,26035.0,0.60001831]
[1693535191256,0.24644196,26036.0,26035.0,0.60001831]
[1693535191760,0.05468907,26036.0,26035.0,0.60001831]
[1693535192260,0.05852907,26036.0,26035.0,0.60301831]
[1693535192653,0.05852907,26036.0,26035.0,0.60601831]
[1693535192853,0.06152907,26036.0,26035.0,0.60601831]
[1693535193051,0.06152907,26036.0,26035.0,0.57491831]
[1693535193254,0.31463253,26036.0,26029.0,0.1509]
[1693535193563,0.31463253,26036.0,26027.0,0.4154]
[1693535193564,0.19179848,26031.0,26027.0,0.4154]
[1693535193763,0.21968907,26030.0,26027.0,0.6019]
[1693535194062,0.165,26030.0,26029.0,0.4154]
[1693535194262,0.21968907,26030.0,26029.0,0.4294]
[1693535195755,0.21968907,26030.0,26029.0,0.4154]
[1693535195961,0.22568907,26030.0,26029.0,0.4164]
[1693535196360,0.23168907,26030.0,26029.0,0.4164]
[1693535196657,0.22568907,26030.0,26029.0,0.4174]
[1693535196861,0.23168907,26030.0,26029.0,0.4174]
[1693535199366,0.23168907,26030.0,26029.0,0.42124]
[1693535200266,0.012,26030.0,26029.0,0.42124]
[1693535200469,0.1547,26033.0,26029.0,0.4174]
[1693535200767,0.1747,26033.0,26032.0,0.4154]
[1693535200964,0.1747,26033.0,26032.0,0.52663745]
[1693535201555,0.23335004,26033.0,26032.0,0.4154]
[1693535201761,0.26404254,26033.0,26032.0,0.4154]
[1693535201962,0.26404254,26033.0,26032.0,0.47008907]
[1693535202466,0.26404254,26033.0,26032.0,0.47308907]
[1693535202665,0.26404254,26033.0,26032.0,0.47692907]
[1693535202967,0.26404254,26033.0,26032.0,0.47308907]
[1693535203264,0.26404254,26033.0,26032.0,0.53263745]
[1693535203464,0.24404254,26033.0,26032.0,0.53647745]
[1693535203658,0.08934254,26033.0,26032.0,0.53263745]
[1693535203859,0.09098165,26036.0,26035.0,0.4154]
[1693535204055,0.11098165,26036.0,26035.0,0.94203745]
[1693535204259,0.26458165,26036.0,26035.0,0.94203745]
[1693535205173,0.26458165,26036.0,26035.0,0.8115761]
[1693535205466,0.26458165,26036.0,26035.0,0.8145761]
[1693535205766,0.26458165,26036.0,26035.0,0.8175761]
[1693535206068,0.26458165,26036.0,26035.0,0.87226517]
[1693535206664,0.26458165,26036.0,26035.0,0.8175761]
[1693535206862,0.26074165,26036.0,26035.0,0.8175761]
[1693535209461,0.31543072,26036.0,26035.0,0.8175761]
[1693535209661,0.26074165,26036.0,26035.0,0.8175761]
[1693535210166,0.26458165,26036.0,26035.0,0.8175761]
[1693535211262,0.45611327,26036.0,26035.0,0.8175761]
[1693535211661,0.45227327,26036.0,26035.0,0.8175761]
[1693535211962,0.26074165,26036.0,26035.0,0.87412448]
[1693535212269,0.45227376,26036.0,26035.0,0.87412448]
[1693535212766,0.45611376,26036.0,26035.0,0.8175761]
[1693535213162,0.45227376,26036.0,26035.0,0.8175761]
[1693535213361,0.45611376,26036.0,26035.0,0.8175761]
[1693535213668,0.45227376,26036.0,26035.0,0.81075793]
[1693535214259,0.48696283,26036.0,26035.0,0.81075793]
[1693535214863,0.29927072,26036.0,26035.0,0.81075793]
[1693535215373,0.24458165,26036.0,26035.0,0.81075793]
[1693535215963,0.29927072,26036.0,26035.0,0.8063259]
[1693535217974,0.29927072,26036.0,26035.0,0.77581707]
[1693535218772,0.24458165,26036.0,26035.0,0.77581707]
[1693535219678,0.29927072,26036.0,26035.0,0.77581707]
[1693535220173,0.24458165,26036.0,26035.0,0.77581707]
[1693535220774,0.29927072,26036.0,26035.0,0.77581707]
[1693535221077,0.24458165,26036.0,26035.0,0.77581707]
[1693535221576,0.08714165,26036.0,26035.0,0.83620545]
[1693535221779,0.84749289,26040.0,26039.0,0.00384]
[1693535221979,0.84749289,26040.0,26039.0,0.43924]
[1693535222279,1.03905542,26040.0,26039.0,0.53047745]
[1693535222474,1.09374449,26040.0,26039.0,0.49578838]
[1693535222679,1.03905542,26040.0,26039.0,0.49578838]
[1693535222883,1.03905542,26040.0,26039.0,0.50178838]
[1693535223372,0.84749289,26040.0,26039.0,0.50178838]
[1693535223972,0.84749289,26040.0,26039.0,0.55647745]
[1693535224173,0.84749289,26040.0,26039.0,0.50178838]
[1693535224472,0.05679289,26040.0,26039.0,0.48178838]
[1693535224672,1.58124,26041.0,26040.0,0.00384]
[1693535224673,1.61254519,26041.0,26040.0,0.00384]
[1693535224874,1.66723426,26041.0,26040.0,0.41924]
[1693535225887,1.66723426,26041.0,26040.0,0.42524]
[1693535227692,1.66723426,26041.0,26040.0,0.4214]
[1693535229600,1.7254903,26041.0,26040.0,0.4214]
[1693535233307,1.95149792,26041.0,26040.0,0.4214]
[1693535233602,1.7254903,26041.0,26040.0,0.4214]
[1693535233800,1.95149792,26041.0,26040.0,0.4214]
[1693535236907,1.95149792,26041.0,26040.0,0.39089445]
[1693535237209,1.95533792,26041.0,26040.0,0.39089445]
[1693535238098,1.95533792,26041.0,26040.0,0.39473445]
[1693535238506,1.95533792,26041.0,26040.0,0.39089445]
[1693535244719,1.7254903,26041.0,26040.0,0.39089445]
[1693535245214,1.95557969,26041.0,26040.0,0.39089445]
[1693535246819,1.7254903,26041.0,26040.0,0.39089445]
[1693535248411,1.78111133,26041.0,26040.0,0.39089445]
[1693535252021,1.955647,26041.0,26040.0,0.39089445]
[1693535254724,1.7254903,26041.0,26040.0,0.39089445]
[1693535255626,1.78111162,26041.0,26040.0,0.39089445]
[1693535255826,1.7254903,26041.0,26040.0,0.39089445]
[1693535256827,1.78111156,26041.0,26040.0,0.39089445]
[1693535257828,2.04542711,26041.0,26040.0,0.39089445]
[1693535259422,2.04926711,26041.0,26040.0,0.54609445]
[1693535260122,2.16703544,26041.0,26040.0,0.54609445]
[1693535262721,1.86057195,26041.0,26040.0,0.54609445]
[1693535263926,1.86057195,26041.0,26040.0,0.54309445]
[1693535264232,1.86057195,26041.0,26040.0,0.54609445]
[1693535264923,2.20534338,26041.0,26040.0,0.54609445]
[1693535265629,2.17065431,26041.0,26035.0,0.38496009]
[1693535265828,0.26905255,26036.0,26035.0,0.34750252]
[1693535266036,0.08818134,26036.0,26035.0,0.76290252]
[1693535266340,0.41779895,26036.0,26035.0,0.76290252]
[1693535266547,0.11415833,26036.0,26035.0,0.76290252]
[1693535266734,0.11415833,26036.0,26035.0,0.76590252]
[1693535266941,0.11715833,26036.0,26035.0,0.4184]
[1693535267142,0.29207484,26036.0,26035.0,0.4184]
[1693535267337,0.28823484,26036.0,26035.0,0.4184]
[1693535267643,0.28823484,26036.0,26035.0,0.4214]
[1693535268146,0.29123484,26036.0,26035.0,0.4214]
[1693535269045,0.29123484,26036.0,26035.0,0.47794838]
[1693535272341,0.06452907,26036.0,26035.0,0.47794838]
[1693535272545,0.06452907,26036.0,26035.0,0.4214]
[1693535275255,0.06452907,26036.0,26035.0,0.46310672]
[1693535276651,0.06452907,26036.0,26035.0,0.40655834]
[1693535277947,0.06452907,26036.0,26035.0,0.46310672]
[1693535278146,0.09524118,26036.0,26035.0,0.46310672]